lending/lending_fUSD_20241211
["ID","MTS","AMOUNT","RATE_DAILY","PERIOD"]
[345000971,1733917832417,-500.0,0.00011095,2]
[345000972,1733917832427,-500.0,0.00011095,2]
[345000973,1733917832436,-500.0,0.00011095,2]
[345000974,1733917832446,-500.0,0.00011095,2]
[345000975,1733917832456,-300.0,0.00011096,2]
[345000976,1733917832471,-181.81,0.00011096,2]
[345000977,1733917832480,-500.0,0.00011096,2]
[345000978,1733917832490,-331.19438893,0.00011096,2]
[345000979,1733917832499,-500.0,0.00011096,2]
[345000980,1733917832510,-500.0,0.00011096,2]
[345000981,1733917832520,-591.17,0.00011096,2]
[345000982,1733917832529,-500.0,0.00011096,2]
[345000983,1733917832540,-500.0,0.00011096,2]
[345000984,1733917832551,-500.0,0.00011096,2]
[345000985,1733917832560,-500.0,0.00011096,2]
[345000987,1733917832569,-500.0,0.00011096,2]
[345000989,1733917832579,-500.0,0.00011096,2]
[345000991,1733917832589,-194.760743,0.00011096,2]
[345000992,1733917832599,-500.0,0.00011096,2]
[345000993,1733917832608,-500.0,0.00011096,2]
[345000994,1733917832617,-591.84,0.00011096,2]
[345000995,1733917832627,-500.0,0.00011096,2]
[345000996,1733917832642,-500.0,0.00011096,2]
[345000997,1733917832652,-500.0,0.00011096,2]
[345000998,1733917832661,-500.0,0.00011096,2]
[345000999,1733917832670,-500.0,0.00011096,2]
[345001000,1733917832680,-500.0,0.00011096,2]
[345001001,1733917832689,-500.0,0.00011096,2]
[345001002,1733917832699,-500.0,0.00011096,2]
[345001003,1733917832709,-413.24256851,0.00011096,2]
[345001004,1733917832719,-500.0,0.00011096,2]
[345001005,1733917832728,-500.0,0.00011096,2]
[345001006,1733917832738,-500.0,0.00011096,2]
[345001007,1733917832747,-500.0,0.00011096,2]
[345001008,1733917832757,-500.0,0.00011096,2]
[345001009,1733917832766,-613.7643509,0.00011096,2]
[345001010,1733917832776,-500.0,0.00011096,2]
[345001011,1733917832785,-500.0,0.00011096,2]
[345001012,1733917832794,-500.0,0.00011096,2]
[345001013,1733917832804,-500.0,0.00011096,2]
[345001014,1733917832813,-500.0,0.00011096,2]
[345001015,1733917832822,-500.0,0.00011096,2]
[345001016,1733917832831,-500.0,0.00011096,2]
[345001017,1733917832841,-500.0,0.00011096,2]
[345001018,1733917832850,-500.0,0.00011096,2]
[345001019,1733917832860,-399.73416134,0.00011096,2]
[345001020,1733917832870,-500.0,0.00011096,2]
[345001021,1733917832879,-547.8,0.00011096,2]
[345001022,1733917832890,-500.0,0.00011096,2]
[345001023,1733917832900,-500.0,0.00011096,2]
[345001024,1733917832910,-500.0,0.00011096,2]
[345001025,1733917832919,-500.0,0.00011096,2]
[345001026,1733917832929,-500.0,0.00011096,2]
[345001027,1733917832939,-500.0,0.00011096,2]
[345001028,1733917832949,-500.0,0.00011096,2]
[345001029,1733917832959,-500.0,0.00011096,2]
[345001030,1733917832969,-500.0,0.00011096,2]
[345001031,1733917832978,-500.0,0.00011096,2]
[345001032,1733917832988,-500.0,0.00011096,2]
[345001033,1733917832998,-500.0,0.00011096,2]
[345001034,1733917833007,-500.0,0.00011096,2]
[345001035,1733917833017,-500.0,0.00011096,2]
[345001036,1733917833027,-165.16,0.00011096,2]
[345001037,1733917833037,-578.64,0.00011096,2]
[345001038,1733917833047,-372.03158788,0.00011096,2]
[345001039,1733917833056,-500.0,0.00011096,2]
[345001040,1733917833067,-500.0,0.00011096,2]
[345001041,1733917833076,-250.0,0.00011096,2]
[345001042,1733917833086,-500.0,0.00011096,2]
[345001043,1733917833096,-500.0,0.00011096,2]
[345001044,1733917833105,-500.0,0.00011096,2]
[345001045,1733917833115,-500.0,0.00011096,2]
[345001046,1733917833125,-500.0,0.00011096,2]
[345001047,1733917833137,-500.0,0.00011096,2]
[345001048,1733917833146,-500.0,0.00011096,2]
[345001049,1733917833156,-500.0,0.00011096,2]
[345001050,1733917833166,-500.0,0.00011096,2]
[345001051,1733917833176,-500.0,0.00011096,2]
[345001052,1733917833186,-500.0,0.00011096,2]
[345001053,1733917833196,-500.0,0.00011096,2]
[345001054,1733917833206,-500.0,0.00011096,2]
[345001055,1733917833217,-500.0,0.00011096,2]
[345001056,1733917833227,-500.0,0.00011096,2]
[345001057,1733917833237,-500.0,0.00011096,2]
[345001058,1733917833248,-500.0,0.00011096,2]
[345001059,1733917833258,-500.0,0.00011096,2]
[345001060,1733917833269,-230.64215925,0.00011096,2]
[345001061,1733917833278,-528.15,0.00011096,2]
[345001062,1733917833288,-500.0,0.00011096,2]
[345001063,1733917833298,-500.0,0.00011096,2]
[345001064,1733917833307,-500.0,0.00011096,2]
[345001065,1733917833318,-500.0,0.00011096,2]
[345001066,1733917833328,-500.0,0.00011096,2]
[345001067,1733917833338,-500.0,0.00011096,2]
[345001068,1733917833348,-500.0,0.00011096,2]
[345001069,1733917833358,-500.0,0.00011096,2]
[345001070,1733917833368,-500.0,0.00011096,2]
[345001071,1733917833379,-500.0,0.00011096,2]
[345001072,1733917833390,-500.0,0.00011096,2]
[345001073,1733917833400,-500.0,0.00011096,2]
[345001074,1733917833409,-500.0,0.00011096,2]
[345001075,1733917833419,-569.9,0.00011096,2]
[345001076,1733917833429,-500.0,0.00011096,2]
[345001077,1733917833439,-500.0,0.00011096,2]
[345001078,1733917833449,-500.0,0.00011096,2]
[345001079,1733917833463,-500.0,0.00011096,2]
[345001080,1733917833473,-500.0,0.00011096,2]
[345001081,1733917833482,-500.0,0.00011096,2]
[345001082,1733917833492,-500.0,0.00011096,2]
[345001083,1733917833503,-500.0,0.00011096,2]
[345001084,1733917833512,-500.0,0.00011096,2]
[345001085,1733917833522,-500.0,0.00011096,2]
[345001086,1733917833532,-500.0,0.00011096,2]
[345001087,1733917833544,-500.0,0.00011096,2]
[345001088,1733917833554,-500.0,0.00011096,2]
[345001089,1733917833564,-500.0,0.00011096,2]
[345001090,1733917833574,-500.0,0.00011096,2]
[345001091,1733917833584,-500.0,0.00011096,2]
[345001092,1733917833595,-500.0,0.00011096,2]
[345001093,1733917833605,-500.0,0.00011096,2]
[345001094,1733917833615,-500.0,0.00011096,2]
[345001095,1733917833626,-500.0,0.00011096,2]
[345001096,1733917833637,-500.0,0.00011096,2]
[345001097,1733917833646,-500.0,0.00011096,2]
[345001098,1733917833656,-500.0,0.00011096,2]
[345001099,1733917833666,-500.0,0.00011096,2]
[345001100,1733917833676,-543.44,0.00011096,2]
[345001101,1733917833687,-500.0,0.00011096,2]
[345001102,1733917833698,-500.0,0.00011096,2]
[345001103,1733917833709,-374.20788967,0.00011096,2]
[345001104,1733917833720,-500.0,0.00011096,2]
[345001105,1733917833729,-500.0,0.00011096,2]
[345001106,1733917833740,-500.0,0.00011096,2]
[345001107,1733917833750,-603.09583925,0.00011096,2]
[345001108,1733917833760,-500.0,0.00011096,2]
[345001109,1733917833769,-500.0,0.00011096,2]
[345001110,1733917833779,-500.0,0.00011096,2]
[345001111,1733917833790,-500.0,0.00011096,2]
[345001112,1733917833799,-648.16623964,0.00011096,2]
[345001113,1733917833810,-500.0,0.00011096,2]
[345001114,1733917833820,-500.0,0.00011096,2]
[345001115,1733917833831,-500.0,0.00011096,2]
[345001116,1733917833841,-1000.0,0.00011096,2]
[345001117,1733917833850,-500.0,0.00011096,2]
[345001118,1733917833859,-500.0,0.00011096,2]
[345001119,1733917833868,-500.0,0.00011096,2]
[345001120,1733917833878,-532.67,0.00011096,2]
[345001121,1733917833889,-500.0,0.00011096,2]
[345001122,1733917833899,-500.0,0.00011096,2]
[345001123,1733917833909,-639.28,0.00011096,2]
[345001124,1733917833920,-500.0,0.00011096,2]
[345001125,1733917833930,-500.0,0.00011097,2]
[345001126,1733917833940,-500.0,0.00011097,2]
[345001127,1733917833950,-500.0,0.00011097,2]
[345001128,1733917833960,-500.0,0.00011097,2]
[345001129,1733917833970,-500.0,0.00011097,2]
[345001130,1733917833980,-500.07754151,0.00011097,2]
[345001131,1733917833989,-500.7137814,0.00011097,2]
[345001132,1733917833999,-503.87076295,0.00011097,2]
[345001133,1733917834008,-500.0,0.00011097,2]
[345001134,1733917834018,-150.06689548,0.00011097,2]
[345001135,1733917834028,-500.0,0.00011097,2]
[345001136,1733917834038,-500.0,0.00011097,2]
[345001137,1733917834048,-500.0,0.00011097,2]
[345001138,1733917834057,-500.0,0.00011097,2]
[345001139,1733917834066,-500.0,0.00011097,2]
[345001140,1733917834075,-500.0,0.00011097,2]
[345001141,1733917834086,-503.00773955,0.00011097,2]
[345001142,1733917834095,-500.0,0.00011097,2]
[345001143,1733917834105,-500.0,0.00011097,2]
[345001144,1733917834115,-500.0,0.00011097,2]
[345001145,1733917834125,-500.0,0.00011097,2]
[345001146,1733917834134,-500.0,0.00011097,2]
[345001147,1733917834144,-500.0,0.00011097,2]
[345001148,1733917834153,-500.0,0.00011097,2]
[345001149,1733917834163,-500.0,0.00011097,2]
[345001150,1733917834172,-503.13522173,0.00011097,2]
[345001151,1733917834182,-506.03458974,0.00011097,2]
[345001152,1733917834191,-500.0,0.00011097,2]
[345001153,1733917834200,-320.75759048,0.00011097,2]
[345001154,1733917834210,-500.0,0.00011097,2]
[345001155,1733917834219,-500.19355742,0.00011097,2]
[345001156,1733917834228,-380.01,0.00011097,2]
[345001157,1733917834237,-500.0,0.00011097,2]
[345001158,1733917834247,-500.0,0.00011097,2]
[345001159,1733917834256,-500.0,0.00011097,2]
[345001160,1733917834264,-500.0,0.00011097,2]
[345001161,1733917834274,-500.0,0.00011097,2]
[345001162,1733917834283,-500.0,0.00011097,2]
[345001163,1733917834292,-500.0,0.00011097,2]
[345001164,1733917834301,-500.0,0.00011097,2]
[345001165,1733917834310,-500.0,0.00011097,2]
[345001166,1733917834320,-579.66634038,0.00011097,2]
[345001167,1733917834329,-500.0,0.00011097,2]
[345001168,1733917834338,-500.0,0.00011097,2]
[345001169,1733917834347,-500.0,0.00011097,2]
[345001170,1733917834357,-500.0,0.00011097,2]
[345001171,1733917834367,-500.0,0.00011097,2]
[345001172,1733917834377,-500.0,0.00011097,2]
[345001173,1733917834389,-514.69,0.00011097,2]
[345001174,1733917834399,-500.0,0.00011097,2]
[345001175,1733917834409,-500.0,0.00011097,2]
[345001176,1733917834420,-500.0,0.00011097,2]
[345001177,1733917834430,-500.0,0.00011097,2]
[345001178,1733917834440,-500.0,0.00011097,2]
[345001179,1733917834450,-500.0,0.00011097,2]
[345001180,1733917834461,-537.94,0.00011097,2]
[345001181,1733917834472,-500.0,0.00011097,2]
[345001182,1733917834481,-500.0,0.00011097,2]
[345001183,1733917834491,-500.0,0.00011097,2]
[345001184,1733917834501,-500.0,0.00011097,2]
[345001185,1733917834511,-500.0,0.00011097,2]
[345001186,1733917834521,-500.0,0.00011097,2]
[345001187,1733917834531,-500.0,0.00011097,2]
[345001188,1733917834544,-500.0,0.00011097,2]
[345001189,1733917834554,-500.0,0.00011097,2]
[345001190,1733917834564,-500.0,0.00011097,2]
[345001191,1733917834573,-500.0,0.00011097,2]
[345001192,1733917834583,-525.352,0.00011097,2]
[345001193,1733917834593,-500.0,0.00011097,2]
[345001194,1733917834603,-500.0,0.00011097,2]
[345001195,1733917834613,-500.0,0.00011097,2]
[345001196,1733917834623,-611.06,0.00011097,2]
[345001197,1733917834635,-500.0,0.00011097,2]
[345001198,1733917834645,-500.0,0.00011097,2]
[345001199,1733917834654,-500.0,0.00011097,2]
[345001200,1733917834664,-500.0,0.00011097,2]
[345001201,1733917834673,-194.760743,0.00011097,2]
[345001202,1733917834683,-194.760743,0.00011097,2]
[345001203,1733917834693,-500.0,0.00011097,2]
[345001204,1733917834702,-500.0,0.00011097,2]
[345001205,1733917834712,-500.0,0.00011097,2]
[345001206,1733917834722,-201.43,0.00011097,2]
[345001207,1733917834731,-500.0,0.00011097,2]
[345001208,1733917834741,-500.0,0.00011097,2]
[345001209,1733917834750,-500.0,0.00011097,2]
[345001210,1733917834761,-500.0,0.00011097,2]
[345001211,1733917834770,-500.0,0.00011097,2]
[345001212,1733917834779,-500.0,0.00011097,2]
[345001213,1733917834789,-500.0,0.00011097,2]
[345001214,1733917834798,-500.0,0.00011097,2]
[345001215,1733917834808,-500.0,0.00011097,2]
[345001216,1733917834817,-500.0,0.00011097,2]
[345001217,1733917834826,-500.0,0.00011097,2]
[345001218,1733917834837,-501.21353826,0.00011097,2]
[345001219,1733917834848,-500.0,0.00011097,2]
[345001220,1733917834858,-500.0,0.00011097,2]
[345001221,1733917834868,-304.27987753,0.00011097,2]
[345001222,1733917834878,-500.0,0.00011097,2]
[345001223,1733917834889,-354.77,0.00011097,2]
[345001224,1733917834899,-266.55,0.00011097,2]
[345001225,1733917834908,-446.33,0.00011097,2]
[345001226,1733917834918,-182.98,0.00011097,2]
[345001227,1733917834927,-500.0,0.00011097,2]
[345001228,1733917834937,-500.0,0.00011097,2]
[345001229,1733917834947,-628.08,0.00011097,2]
[345001230,1733917834957,-254.01,0.00011097,2]
[345001231,1733917834968,-166.65,0.00011097,2]
[345001232,1733917834977,-500.0,0.00011097,2]
[345001233,1733917834987,-345.76,0.00011097,2]
[345001234,1733917834997,-500.0,0.00011097,2]
[345001235,1733917835007,-500.0,0.00011097,2]
[345001236,1733917835016,-155.83,0.00011097,2]
[345001237,1733917835025,-500.0,0.00011097,2]
[345001238,1733917835036,-278.91,0.00011097,2]
[345001239,1733917835047,-206.99,0.00011097,2]
[345001240,1733917835056,-500.0,0.00011097,2]
[345001241,1733917835065,-500.0,0.00011097,2]
[345001242,1733917835075,-500.0,0.00011097,2]
[345001243,1733917835084,-454.56,0.00011097,2]
[345001244,1733917835093,-500.0,0.00011097,2]
[345001245,1733917835103,-528.15,0.00011097,2]
[345001246,1733917835112,-528.15,0.00011097,2]
[345001247,1733917835123,-500.0,0.00011097,2]
[345001248,1733917835135,-452.68,0.00011097,2]
[345001249,1733917835144,-500.0,0.00011097,2]
[345001250,1733917835153,-500.0,0.00011097,2]
[345001251,1733917835162,-453.44,0.00011097,2]
[345001252,1733917835171,-500.0,0.00011097,2]
[345001253,1733917835181,-500.0,0.00011097,2]
[345001254,1733917835191,-500.0,0.00011097,2]
[345001255,1733917835202,-500.0,0.00011097,2]
[345001256,1733917835211,-500.0,0.00011097,2]
[345001257,1733917835221,-500.0,0.00011097,2]
[345001258,1733917835231,-500.0,0.00011097,2]
[345001259,1733917835240,-500.0,0.00011097,2]
[345001260,1733917835250,-500.0,0.00011097,2]
[345001261,1733917835259,-500.0,0.00011097,2]
[345001262,1733917835269,-411.1,0.00011097,2]
[345001263,1733917835280,-500.0,0.00011097,2]
[345001264,1733917835293,-500.0,0.00011097,2]
[345001265,1733917835303,-500.0,0.00011097,2]
[345001266,1733917835313,-500.0,0.00011097,2]
[345001267,1733917835323,-559.42,0.00011097,2]
[345001268,1733917835332,-500.0,0.00011097,2]
[345001269,1733917835342,-500.0,0.00011097,2]
[345001270,1733917835351,-500.0,0.00011097,2]
[345001271,1733917835361,-500.0,0.00011097,2]
[345001272,1733917835371,-500.0,0.00011097,2]
[345001273,1733917835380,-227.28,0.00011097,2]
[345001274,1733917835391,-240.90512123,0.00011097,2]
[345001275,1733917835401,-500.0,0.00011097,2]
[345001276,1733917835410,-162.1,0.00011097,2]
[345001277,1733917835420,-500.0,0.00011097,2]
[345001278,1733917835430,-500.0,0.00011097,2]
[345001279,1733917835440,-500.0,0.00011097,2]
[345001280,1733917835450,-500.0,0.00011097,2]
[345001281,1733917835463,-500.0,0.00011097,2]
[345001282,1733917835473,-500.0,0.00011097,2]
[345001283,1733917835482,-500.0,0.00011097,2]
[345001284,1733917835492,-500.0,0.00011097,2]
[345001285,1733917835503,-500.0,0.00011097,2]
[345001286,1733917835513,-500.0,0.00011097,2]
[345001287,1733917835524,-410.37,0.00011097,2]
[345001288,1733917835534,-271.78738132,0.00011097,2]
[345001289,1733917835545,-500.0,0.00011097,2]
[345001290,1733917835555,-500.0,0.00011097,2]
[345001291,1733917835565,-500.0,0.00011097,2]
[345001292,1733917835575,-500.0,0.00011097,2]
[345001293,1733917835585,-500.0,0.00011097,2]
[345001294,1733917835594,-500.0,0.00011097,2]
[345001295,1733917835603,-500.0,0.00011097,2]
[345001296,1733917835612,-500.0,0.00011097,2]
[345001297,1733917835622,-321.88,0.00011097,2]
[345001298,1733917835632,-403.95068035,0.00011097,2]
[345001299,1733917835644,-500.0,0.00011097,2]
[345001300,1733917835654,-500.0,0.00011097,2]
[345001301,1733917835663,-500.0,0.00011097,2]
[345001302,1733917835672,-500.0,0.00011097,2]
[345001303,1733917835682,-500.0,0.00011097,2]
[345001304,1733917835691,-500.0,0.00011097,2]
[345001305,1733917835700,-500.0,0.00011097,2]
[345001306,1733917835709,-500.0,0.00011097,2]
[345001307,1733917835718,-283.1,0.00011097,2]
[345001308,1733917835728,-500.0,0.00011097,2]
[345001309,1733917835737,-500.0,0.00011097,2]
[345001310,1733917835746,-500.0,0.00011097,2]
[345001311,1733917835756,-500.0,0.00011097,2]
[345001312,1733917835766,-500.0,0.00011097,2]
[345001313,1733917835776,-500.0,0.00011097,2]
[345001314,1733917835786,-500.0,0.00011097,2]
[345001315,1733917835795,-128044.39293138,0.00011098,2]
[345001316,1733917836176,-107917.16116767,0.00011098,2]
[345001317,1733917836193,-1482.85614415,0.00011098,2]
[345001318,1733917836208,-900.0,0.00011098,2]
[345001319,1733917836220,-1661.71821872,0.00011098,2]
[345001322,1733917836232,-1480.6389877,0.00011098,2]
[345001324,1733917836250,-2855.91574988,0.00011098,2]
[345001470,1733917837755,-10179.27468117,0.00011098,2]
[345001491,1733917837944,-733.99255442,0.00011098,2]
[345001493,1733917837956,-2682.394968,0.00011098,2]
[345001495,1733917837968,-28360.001,0.00011098,2]
[345001500,1733917838006,-1025.3,0.00011098,2]
[345001507,1733917838066,-2553.13600613,0.00011098,2]
[345001510,1733917838077,-876.49849178,0.00011098,2]
[345001713,1733917840232,-1129.9999999,0.00011098,2]
[345001988,1733917843090,-98014.25449209,0.00011098,2]
[345001989,1733917843148,-24617.22705534,0.00011098,2]
[345001990,1733917843209,-1658.97108065,0.00011098,2]
[345001991,1733917843221,-1746.14552268,0.00011098,2]
[345001992,1733917843267,-3882.599025,0.00011098,2]
[345002013,1733917845797,-2316.61172675,0.00011098,2]
[345002014,1733917845855,-61499.99998756,0.00011098,2]
[345002015,1733917846029,-4109.57199621,0.00011098,2]
[345002018,1733918650457,845.6,8.344e-05,2]
[345002031,1733919032039,-3639.907335,0.00010169,2]
[345002032,1733919032050,-293.44,0.0001021,2]
[345002033,1733919032062,-250.0,0.00010269,2]
[345002034,1733919032072,-165.89,0.00010325,2]
[345002035,1733919032081,-250.0,0.00010345,2]
[345002036,1733919032091,-346.085,0.0001055,2]
[345002037,1733919032100,-845.6,0.00010608,2]
[345002038,1733919032109,-300.0,0.00010899,2]
[345002039,1733919032119,-5009.5202555,0.000109,2]
[345002040,1733919032128,-425.0,0.00011,2]
[345002041,1733919032137,-151.03,0.00011,2]
[345002042,1733919032147,-364.25,0.00011,2]
[345002043,1733919032156,-14990.80199229,0.00011,2]
[345002044,1733919032165,-1192.183,0.00011094,2]
[345002045,1733919032175,-268.72,0.00011095,2]
[345002046,1733919032184,-500.0,0.00011095,2]
[345002047,1733919032193,-150.0,0.00011095,2]
[345002048,1733919032204,-208.20547042,0.00011096,2]
[345002049,1733919032217,-261.04,0.00011096,2]
[345002050,1733919032227,-500.0,0.00011097,2]
[345002051,1733919032236,-500.0,0.00011097,2]
[345002052,1733919032245,-59781.56913848,0.00011098,2]
[345002053,1733919032255,-2000.0,0.00011098,2]
[345002054,1733919032264,-200.0,0.00011098,2]
[345002055,1733919032273,-2000.0,0.00011098,2]
[345002056,1733919032282,-200.0,0.00011098,2]
[345002057,1733919032292,-500.0,0.00011098,2]
[345002059,1733919032302,-500.0,0.00011098,2]
[345002060,1733919032313,-500.0,0.00011098,2]
[345002062,1733919032323,-1052.68,0.00011098,2]
[345002064,1733919032332,-500.0,0.00011098,2]
[345002066,1733919032341,-500.0,0.00011098,2]
[345002068,1733919032351,-500.0,0.00011098,2]
[345002070,1733919032360,-500.0,0.00011098,2]
[345002072,1733919032369,-500.0,0.00011098,2]
[345002093,1733919032564,-500.0,0.00011098,2]
[345002095,1733919032574,-500.0,0.00011098,2]
[345002097,1733919032583,-500.0,0.00011098,2]
[345002099,1733919032592,-500.0,0.00011098,2]
[345002100,1733919032599,-1369.84,0.00011098,2]
[345002102,1733919032607,-500.88981781,0.00011098,2]
[345002104,1733919032616,-194.760744,0.00011098,2]
[345002106,1733919032625,-500.0,0.00011098,2]
[345002108,1733919032634,-500.0,0.00011098,2]
[345002110,1733919032644,-175.68,0.00011098,2]
[345002112,1733919032653,-500.0,0.00011098,2]
[345002114,1733919032662,-500.34342038,0.00011098,2]
[345002116,1733919032671,-500.0,0.00011098,2]
[345002118,1733919032680,-2000.0,0.00011098,2]
[345002120,1733919032689,-200.0,0.00011098,2]
[345002122,1733919032698,-500.0,0.00011098,2]
[345002124,1733919032707,-283.99508131,0.00011098,2]
[345002126,1733919032717,-500.0,0.00011098,2]
[345002127,1733919032726,-500.0,0.00011098,2]
[345002129,1733919032735,-500.0,0.00011098,2]
[345002131,1733919032744,-917.38,0.00011098,2]
[345002133,1733919032753,-1741.44,0.00011098,2]
[345002135,1733919032762,-500.0,0.00011098,2]
[345002137,1733919032772,-500.0,0.00011098,2]
[345002139,1733919032781,-500.0,0.00011098,2]
[345002141,1733919032790,-500.0,0.00011098,2]
[345002143,1733919032799,-500.0,0.00011098,2]
[345002145,1733919032809,-1291.23,0.00011098,2]
[345002147,1733919032819,-1291.23,0.00011098,2]
[345002149,1733919032827,-1291.23,0.00011098,2]
[345002151,1733919032836,-1291.23,0.00011098,2]
[345002153,1733919032845,-500.0,0.00011098,2]
[345002155,1733919032854,-500.0,0.00011098,2]
[345002157,1733919032863,-500.0,0.00011098,2]
[345002159,1733919032872,-544.68,0.00011098,2]
[345002161,1733919032881,-500.0,0.00011098,2]
[345002163,1733919032890,-556.4,0.00011098,2]
[345002164,1733919032899,-500.0,0.00011098,2]
[345002166,1733919032908,-500.0,0.00011098,2]
[345002168,1733919032918,-500.0,0.00011098,2]
[345002170,1733919032927,-500.0,0.00011098,2]
[345002172,1733919032937,-500.0,0.00011098,2]
[345002174,1733919032947,-500.0,0.00011098,2]
[345002176,1733919032956,-286.33,0.00011098,2]
[345002178,1733919032966,-452.0212855,0.00011098,2]
[345002484,1733919039914,-47.9787145,0.00011098,2]
[345002486,1733919039924,-688.52,0.00011098,2]
[345002488,1733919039935,-500.0,0.00011098,2]
[345002490,1733919039945,-500.0,0.00011098,2]
[345002492,1733919039955,-500.0,0.00011098,2]
[345002494,1733919039964,-500.0,0.00011098,2]
[345002496,1733919039974,-500.0,0.00011098,2]
[345002498,1733919039983,-500.0,0.00011098,2]
[345002500,1733919039993,-500.0,0.00011098,2]
[345002502,1733919040003,-500.0,0.00011098,2]
[345002504,1733919040013,-595.12487877,0.00011098,2]
[345002506,1733919040024,-300.5,0.00011098,2]
[345002508,1733919040034,-500.0,0.00011098,2]
[345002510,1733919040043,-256.02,0.00011098,2]
[345002512,1733919040053,-386.58,0.00011098,2]
[345002514,1733919040064,-500.0,0.00011098,2]
[345002516,1733919040073,-469.66,0.00011098,2]
[345002518,1733919040082,-500.0,0.00011098,2]
[345002520,1733919040092,-500.0,0.00011098,2]
[345002522,1733919040101,-500.0,0.00011098,2]
[345002524,1733919040111,-500.0,0.00011098,2]
[345002526,1733919040120,-548.94,0.00011098,2]
[345002528,1733919040131,-206.98,0.00011098,2]
[345002530,1733919040140,-404.94,0.00011098,2]
[345002532,1733919040150,-500.0,0.00011098,2]
[345002534,1733919040159,-500.0,0.00011098,2]
[345002536,1733919040169,-500.0,0.00011098,2]
[345002538,1733919040177,-500.0,0.00011098,2]
[345002540,1733919040187,-500.0,0.00011098,2]
[345002542,1733919040196,-500.0,0.00011098,2]
[345002544,1733919040206,-500.0,0.00011098,2]
[345002546,1733919040219,-500.0,0.00011098,2]
[345002548,1733919040228,-500.0,0.00011098,2]
[345002550,1733919040237,-3.99640669,0.00011098,2]
[345002681,1733919043446,-191.99105323,0.00011098,2]
[345002682,1733919043456,-191.2091507,0.00011098,2]
[345002683,1733919043467,-270.05329938,0.00011098,2]
[345002684,1733919043477,-220.71270062,0.00011098,2]
[345002685,1733919043488,-279.28729938,0.00011098,2]
[345002686,1733919043498,-529.63,0.00011098,2]
[345002687,1733919043508,-1368.11030084,0.00011098,2]
[345002688,1733919043519,-1631.88969916,0.00011098,2]
[345002689,1733919043529,-241.22143255,0.00011098,2]
[345002690,1733919043538,-500.0,0.00011098,2]
[345002691,1733919043547,-500.0,0.00011098,2]
[345002692,1733919043557,-500.0,0.00011098,2]
[345002693,1733919043569,-500.0,0.00011098,2]
[345002694,1733919043579,-1000.0,0.00011098,2]
[345002695,1733919043589,-983.65,0.00011098,2]
[345002696,1733919043599,-500.0,0.00011098,2]
[345002697,1733919043608,-389.37,0.00011098,2]
[345002698,1733919043618,-500.0,0.00011098,2]
[345002699,1733919043628,-500.0,0.00011098,2]
[345002701,1733919043637,-2000.0,0.00011098,2]
[345002703,1733919043647,-500.0,0.00011098,2]